Cogmind - Beta 13 *** ADVENTURER MODE // 2024.04.08 @ 11:29:26 Player: Asterix Result: Destroyed by G-34 Mercenary with Small Laser Performance ------------- Evolutions (1) 500 Regions Visited (2) 400 Robots Destroyed (17) 85 Value Destroyed (407) 407 Prototype IDs (3) 60 Alien Tech Used (0) 0 Bonus (0) 0 TOTAL SCORE: 1452 Bonus ------- None Cogmind --------- Core Integrity 0/400 Matter 101/300 Energy 160/180 System Corruption 0% Temperature Warning (329) Movement Rolling (115) Ox1 Location -9/Materials Parts ------- > --- POWER (2) -------- Light Deuterium Engine Light Deuterium Engine > --- PROPULSION (2) --- Compact Wheel > --- UTILITY (3) ------ Hardened Medium Armor Plating Hardened Medium Armor Plating > --- WEAPON (2) ------- Welding Torch > --- INVENTORY (5) ---- (None) Peak State ------------ > --- POWER ------------ Light Deuterium Engine Light Deuterium Engine > --- PROPULSION ------- Light Treads Light Treads > --- UTILITY ---------- Hardened Medium Armor Plating Hardened Medium Armor Plating Hardened Medium Armor Plating > --- WEAPON ----------- Beam Rifle Heavy Assault Rifle > --- INVENTORY -------- Light Deuterium Engine Light Deuterium Engine Hardened Medium Armor Plating Small Laser [Rating: 22] Favorites ----------- Power Light Deuterium Engine Engine Light Deuterium Engine Propulsion Light Treads Treads Light Treads Wheel Compact Wheel Utility Hardened Medium Armor Plating Storage Small Storage Unit Protection Hardened Medium Armor Plating Weapon Medium Laser Energy Gun Medium Laser Ballistic Gun Light Assault Rifle Special Weapon Welding Torch Build | -11 -10 -9 ------- Run | Yrd Mat Mat Slots Evolved 2 | . . 2 Power 1 | . . 1 Propulsion . | . . . Utility 1 | . . 1 Weapon . | . . . Parts Attached 33 | 6 7 20 Power 7 | 1 1 5 Engine 7 | 1 1 5 Core . | . . . Reactor . | . . . Propulsion 7 | 2 2 3 Treads 6 | 2 2 2 Leg . | . . . Wheel 1 | . . 1 Hover . | . . . Flight . | . . . Utility 10 | 1 1 8 Device . | . . . Storage 1 | 1 . . Processor . | . . . Hackware . | . . . Protection 9 | . 1 8 Artifact . | . . . Weapon 9 | 2 3 4 Energy Gun 4 | 2 . 2 Energy Cannon . | . . . Ballistic Gun 4 | . 3 1 Ballistic Cannon . | . . . Launcher . | . . . Special Weapon 1 | . . 1 Impact Weapon . | . . . Slashing Weapon . | . . . Piercing Weapon . | . . . Special Melee Weapon . | . . . Unidentified Prototypes . | . . . Parts Lost 4 | . 1 3 Power 1 | . 1 . Propulsion . | . . . Utility 2 | . . 2 Weapon 1 | . . 1 Highest Loss Streak 2 | . 1 2 To Critical Strikes . | . . . Average Slot Usage (%) 85 | . 88 82 Engine 13 | . 7 20 Treads 21 | . 27 12 Wheel 1 | . . 4 Storage 8 | . 14 . Protection 18 | . 10 30 Energy Gun 12 | . 17 5 Ballistic Gun 8 | . 10 6 Naked Turns 4 | . . 4 Heaviest Build 40 | 14 14 40 Greatest Support 40 | 40 40 40 Greatest Overweight (x) 12 | . . 12 Average Overweight (x) . | . . 1 Largest Inventory Capacity 8 | 8 8 8 Average Capacity 6 | 6 8 5 Most Carried 7 | 2 5 7 Average Carried 1 | . 1 2 Final Capacity 8 | 8 8 5 Final Carried 5 | . 5 . Class Distribution -------------------- 94% | Mutant 5% | Scavenger-Mutant Dominant Class ---------------- Mutant | -10/Materials Mutant | -9/Materials Resources | -11 -10 -9 ----------- Run | Yrd Mat Mat Matter Collected 518 | 248 99 171 Remotely . | . . . Salvage Created 578 | 86 361 131 Parts 33 | 2 22 9 Haulers Intercepted . | . . . Recyclers Shooed . | . . . Parts Field Recycled . | . . . Retrieved Matter . | . . . Parts Self-Destructed . | . . . Prevented . | . . . Kills | -11 -10 -9 ------- Run | Yrd Mat Mat Combat Hostiles Destroyed 14 | . 12 2 Guns 14 | . 12 2 Classes Destroyed 5 | 1 3 1 Recycler 1 | 1 . . Watcher 2 | . 1 1 Swarmer 6 | . 6 . Grunt 7 | . 6 1 Sentry 1 | . . 1 Best Kill Streak 4 | 1 4 1 Combat Bots Only 3 | . 3 1 Max Kills in Single Turn 2 | 1 2 1 Gunslinging 1 | . 1 . Exploded . | . . . Melee . | . . . Uniques/NPCs Destroyed . | . . . Combat | -11 -10 -9 -------- Run | Yrd Mat Mat Hostile Shots Fired 218 | . 79 139 Missed 57 | . 25 32 Damage Taken 1651 | . 429 1222 Core 450 | . 46 404 Absorbed by Shields . | . . . Redirected to Shielding 6 | . 6 . Ignored by Resistances 433 | . 137 296 Core Remaining (%) 90 | 100 81 . Volleys Fired 55 | 2 27 26 Largest 2 | 2 2 2 Hottest 90 | 90 90 79 Shots Fired 91 | 4 54 33 Gun 83 | 4 54 25 Cannon . | . . . Launcher . | . . . Special 8 | . . 8 Kinetic 32 | . 22 10 Thermal 52 | 2 27 23 Explosive . | . . . Electromagnetic 7 | 2 5 . Robot Hit Streak 9 | 3 9 8 Robot Miss Streak 3 | . 3 2 Penetration Max . | . . . Secondary Targets 5 | . 5 . Max Gunslinging Chain 1 | . 1 . Shots Hit Robots 64 | 3 38 23 Core Hits 35 | 1 23 11 Critical Kills . | . . . Critical Parts Destroyed . | . . . Critical Strikes 1 | . 1 . Burn 1 | . 1 . Melee Attacks . | . . . Impact . | . . . Slashing . | . . . Piercing . | . . . Sneak Attacks . | . . . Combat Hostiles . | . . . Follow-up Attacks . | . . . Damage Inflicted 631 | 39 375 217 Guns 605 | 39 375 191 Cannons . | . . . Explosions . | . . . Melee . | . . . Ramming 8 | . . 8 Kinetic 194 | . 129 65 Thermal 380 | 12 224 144 Explosive . | . . . Electromagnetic 49 | 27 22 . Impact . | . . . Slashing . | . . . Piercing . | . . . Highest Corruption . | . . . Average Corruption . | . . . Corruption Purged . | . . . Corruption Blocked . | . . . Overload Shots . | . . . Overflow Damage . | . . . Projectiles . | . . . Explosions . | . . . Melee . | . . . Knockbacks . | . . . Impact . | . . . Kinetic . | . . . Secondary . | . . . Self-Inflicted Damage 3 | . . 3 Shots . | . . . Rammed 3 | . . 3 Targets Rammed 3 | . . 3 Kicked . | . . . Crushed . | . . . Highest Temperature 813 | 60 154 813 Average Temperature 181 | 30 42 224 Received Heat Transfer 930 | . 216 714 Effects 53 | . . 53 Shutdowns 19 | . . 19 Energy Bleed 4 | . . 4 Interference 1 | . . 1 Matter Decay 7 | . . 7 Short Circuit 4 | . . 4 Damage (minor) 7 | . . 7 Damage (major) 7 | . . 7 Damage (core) 4 | . . 4 Siege Activations . | . . . Robots Corrupted . | . . . Combat Hostiles . | . . . Parts Fried . | . . . Impact Corruptions . | . . . Robots Melted . | . . . Combat Hostiles . | . . . Parts Melted . | . . . Heat Transferred 1274 | 37 740 497 Parts Sabotaged . | . . . Parts Stolen . | . . . Parts Stripped . | . . . Power Chain Reactions . | . . . Alert | -11 -10 -9 ------- Run | Yrd Mat Mat Peak Influence 161 | 5 161 154 Initial 57 | . 2 57 Average 91 | 2 89 109 Maximum Alert Level . | . . . Low Security (%) 100 | 100 100 100 Level 1 . | . . . Level 2 . | . . . Level 3 . | . . . Level 4 . | . . . Level 5 . | . . . High Security . | . . . Max Security . | . . . Squads Dispatched 3 | . 2 1 Investigation 3 | . 2 1 Extermination . | . . . Reinforcement . | . . . Assault . | . . . Garrison . | . . . Intercept . | . . . Searches Triggered . | . . . Construction Impeded . | . . . Haulers Reinforced . | . . . Active Scanning Responses . | . . . Cargo Convoy Interrupts . | . . . Stealth | -11 -10 -9 --------- Run | Yrd Mat Mat Distress Signals . | . . . Communications Jammed . | . . . Distress Signals . | . . . Times Spotted 27 | . 19 8 Peak Tracking Total 5 | . 4 5 Tactical Retreats . | . . . Traps | -11 -10 -9 ------- Run | Yrd Mat Mat Traps Triggered 4 | . 4 . Indirectly . | . . . Trap Hack Attempts . | . . . Triggered . | . . . Disarmed . | . . . Reprogrammed . | . . . Reused . | . . . Traps Extracted . | . . . Installed . | . . . Triggered . | . . . Machines | -11 -10 -9 ---------- Run | Yrd Mat Mat Machines Disabled . | . . . Max in Single Turn . | . . . Machines Repaired . | . . . Machines Dismantled . | . . . Machines Sabotaged . | . . . Overloaded Fab Kills . | . . . Hacking | -11 -10 -9 --------- Run | Yrd Mat Mat Machines Accessed 5 | . 4 1 Terminals 5 | . 4 1 Fabricators . | . . . Repair Stations . | . . . Recycling Units . | . . . Scanalyzers . | . . . Garrison Access . | . . . Total Hacks 15 | . 12 3 Successful 11 | . 9 2 Failed 4 | . 3 1 Catastrophic . | . . . Database Lockouts . | . . . Manual . | . . . Terminals 15 | . 12 3 Fabricators . | . . . Repair Stations . | . . . Recycling Units . | . . . Scanalyzers . | . . . Garrison Access . | . . . Terminal Hacks 11 | . 9 2 Record 1 | . 1 . Robot Analysis 1 | . . 1 Prototype ID Bank 2 | . 2 . Machine Index 1 | . 1 . Terminal Index 1 | . 1 . Alert Level 1 | . 1 . Recall Investigation 1 | . . 1 Hauler Manifests 1 | . 1 . Zone Layout 2 | . 2 . Fabricator Hacks . | . . . Repair Station Hacks . | . . . Recycling Unit Hacks . | . . . Scanalyzer . | . . . Garrison Access Hacks . | . . . Unauthorized Hacks . | . . . Terminals . | . . . Fabricators . | . . . Repair Stations . | . . . Recycling Units . | . . . Scanalyzers . | . . . Garrison Access . | . . . Data Cores Recovered . | . . . Used . | . . . Hacking Detections 4 | . 3 1 Full Trace Events 4 | . 3 1 Feedback Events . | . . . Feedback Blocked . | . . . Robot Schematics Acquired . | . . . Robots Built . | . . . Authchips . | . . . Time . | . . . Total Robot Build Rating . | . . . Part Schematics Acquired . | . . . Parts Built . | . . . Authchips . | . . . Time . | . . . Total Part Build Rating . | . . . Parts Repaired . | . . . Time . | . . . Parts Recycled . | . . . Recycled Matter . | . . . Retrieved Matter . | . . . Retrieved Components . | . . . Parts Scanalyzed . | . . . Part Schematics Acquired . | . . . Parts Damaged . | . . . Bothacking | -11 -10 -9 ------------ Run | Yrd Mat Mat Used RIF Installer . | . . . Robots Hacked . | . . . Non-combat . | . . . Combat . | . . . Robot Hacks Applied . | . . . Relay Couplers Released . | . . . Fabnet Peak Effective % . | . . . Robots Rewired . | . . . Allies Hacked . | . . . Hacks Repelled . | . . . Allies | -11 -10 -9 -------- Run | Yrd Mat Mat Total Allies . | . . . Largest Group . | . . . Highest-Rated Group . | . . . Highest-Rated Ally . | . . . Total Orders . | . . . Ally Attacks . | . . . Total Damage . | . . . Kills . | . . . Allies Corrupted . | . . . Allies Melted . | . . . Intel | -11 -10 -9 ------- Run | Yrd Mat Mat Robot Analysis Total 1 | . . 1 Derelict Logs Recovered . | . . . Drone Launches . | . . . Drone Recoveries . | . . . Exploration | -11 -10 -9 ------------- Run | Yrd Mat Mat Turns Passed 1071 | 70 577 424 Spaces Moved 545 | 41 301 203 Core 29 | 11 . 18 Treads 413 | 30 301 82 Legs . | . . . Wheels 103 | . . 103 Hover . | . . . Flight . | . . . Fastest Speed 50 | 50 160 50 Average Speed 155 | 130 160 154 Slowest Speed 650 | 160 160 650 Overloaded Moves . | . . . Propulsion Burnouts . | . . . Robots Hopped . | . . . Cave-ins Triggered . | . . . Exploration Rate (%) 31 | 3 72 19 Regions Visited 2 Branch Regions . Pre-discovered Areas . | . . . Known Exits Taken . | . . . Unknown Exits Taken 2 | 1 1 . Scrap Searched . | . . . Spaces Dug . | . . . Terrain Destroyed . | . . . Melee . | . . . Projectile . | . . . AOE . | . . . Terrain Rammed . | . . . Walls Destroyed . | . . . Machines Disabled . | . . . Actions | -11 -10 -9 --------- Run | Yrd Mat Mat Total 691 | 54 347 290 Wait 3 | . . 3 Move 543 | 40 300 203 Hop . | . . . Pick Up 33 | 6 12 15 Fast Attach . | . . . Attach 33 | 6 7 20 Detach 2 | . . 2 Swap . | . . . Drop 19 | . 1 18 Fire 55 | 2 27 26 Melee . | . . . Ram 3 | . . 3 Kick . | . . . Crush . | . . . Escape Stasis . | . . . Rewire . | . . . Trap . | . . . Miscellaneous . | . . . Route ------- -11/Scrapyard -10/Materials (discovered 3 exits: *Mat / [*Min x2]) -9/Materials History --------- Turn | Location | Event 6 | -11/Scrapyard | Discovered new exit (range 15) 71 | -11/Scrapyard | Entered Materials 306 | -10/Materials | Build established: Mutant 347 | -10/Materials | Discovered new exit (range 14) 375 | -10/Materials | Discovered new exit (range 10) 615 | -10/Materials | Discovered new exit (range 17) 648 | -10/Materials | Entered another Materials area 648 | -9/Materials | Evolved 2 slots: Power x1, Utility x1 843 | -9/Materials | Core integrity fell below 50% 992 | -9/Materials | Core integrity fell below 20% 1072 | -9/Materials | Destroyed by G-34 Mercenary with Small Laser Last Messages --------------- robots. Their built-in compact recycling unit can break down almost any form of debris into reusable matter. As K-01 Serfs are extremely cheap to produce and perform no vital function, despite their size they are among the weakest robot designs with the most exposed core. ALERT: Suspicious activity at Terminal M008. Dispatching Investigation squad. R-06 Scavenger collects Broken Hvy. Assault Rifle. Acquired 94 matter. T-07 Excavator is excavating. U-05 Engineer lays Concrete. Slammed into G-34 Mercenary. Destabilizing: Core damaged (-8). Slammed into G-34 Mercenary. Destabilizing: Core damaged (-16). Acquired Welding Torch. Hrd. Medium Armor Plating destroyed. Map ----- +----------------------------------------------------+ | ?????????????????????????????????????????????????? | | ?????????????????????????????????????????????????? | | ?????????????????????????????????????????????????? | | ?????????????????????????????????????????????????? | | ?????????????????????????????????????????????????? | | ?????????????????????????????????????????????????? | | ?????????????????????????????????????????????????? | | ?????????????????????????????????????????????????? | | ?????????????????????????????????????????????????? | | ????????????? ????????????????????????????????? | | ???????????? ??????? ??????????????????????? | | ???????????? ??????? ??????????????????????? | | ????????????# ??????? ?????????????????????? | | ????????????# ??????? "?????????????????????? | | ????????????# ???????? ""????????????????????? | | ????????????# ???????? """ ??????????????????? | | ????????????# ???????? """ ??????????????????? | | ????????????# ######### ??????????????????? | | ????????????# # """ ! # #???????????????? | | ????????????# # "R" # """ #???????????????? | | ????####????# # " " # """ #???????????????? | | ??### #### # # """ k#???????????????? | | ??# # # # """ #???????????????? | | ??# # # """" # #???????????????? | | ??# + """" g #???????????????? | | ??# ### # # """" #@ #???????????????? | | ??# ???#### # ###### #???????????????? | | ??##????????# # #????????#???????????????? | | ????????????# # #????????????????????????? | | ????????????# #############????????????????????? | | ????????????# #????# "T" #????????????????????? | | ????????????# #????# #????????????????????? | | ????????????# #????# """ #????????????????????? | | ????????????# #????# """ #????????????????????? | | ???????????## ##???# """ #????????????????????? | | ########+### #???# #??? #???????????????? | | # % T ##########+## ##### ???????? | | # "" ??????? | | # ??????? | | + ####### ! ??????? | | # #?????## ###################+## ???????? | | # #??????# #????????????????????????????????? | | ## ##?????# #????????????????????????????????? | | # = #?????# #????????????????????????????????? | | = #?????# ############?????????????????????? | | [ #?????# ## #?????????????????????? | | [ #????## ## #?????????????????????? | | # #????# # """ """ #?????????????????????? | | #######????# # """ """ #?????????????????????? | | ???????????# + """ """ #?????????????????????? | +----------------------------------------------------+ Best States ------------- Heat Dissipation 28 Energy Generation 23 Energy Capacity 400 Matter Stores 300 Matter Capacity 300 Sight Range 16 Terrain Scan Density 10 Armor Coverage 675 Resistance: KI 20 Resistance: TH 20 Resistance: EX 20 Resistance: EM 20 Resistance: I 20 Resistance: S 20 Resistance: P 20 Utility Shielding 33 Evasion (%) 42 Recoil Reduction 2 Offensive Hacking 10 Item Schematics ----------------- None Robot Schematics ------------------ None Fabricated ------------ Nothing Alien Tech Used ----------------- None Achievements -------------- None Challenges ------------ None Game ------ Seed AccelerationGuidedCloak Manual? 0 Play Time 00:14:27 Cumulative 5.9 hours Start 2024.04.08 @ 11:17:25 End 2024.04.08 @ 11:29:26 Sessions 1 Manual Loads 0 Difficulty Adventurer Special Mode None Game No. 10 Rogue 9 Adventurer 1 Explorer 0 Win Type - Total 0 Types 0/0/0/0/0/0/0/0/0 Lore% 7 Gallery% 11 Achievement% 12 Wizard Run 0 Options --------- Layout 1 ASCII 0 Keyboard 0 Movement Mouse Keybinds 0 Fullscreen 1 Font 24/Smallcaps Map View 50x35 Zoom Use 0% Tactical HUD 0 Map Filters NONE Filters NONE Steam 1 RUN: 2e354712-e2a3-4da2-ae90-bd66d7f8bfba